bitfinex-derivatives/quotes_BTCF0:USTF0_20240829
["timestamp","ask_amount","ask_price","bid_price","bid_amount"]
[1724931613663,0.17188088,60109.0,60108.0,0.084162]
[1724931614355,0.17188088,60109.0,60107.0,0.32923581]
[1724931614356,0.14742826,60109.0,60107.0,0.32923581]
[1724931614563,0.14517875,60108.0,60107.0,0.41239981]
[1724931615647,0.14517875,60108.0,60107.0,0.41339981]
[1724931615854,0.14517875,60108.0,60107.0,0.41439981]
[1724931616055,0.14517875,60108.0,60107.0,0.41339981]
[1724931616360,0.14917875,60108.0,60107.0,0.41439981]
[1724931616754,0.14473827,60108.0,60107.0,0.41439981]
[1724931616956,0.07643359,60108.0,60107.0,0.41439981]
[1724931617148,0.07643359,60108.0,60107.0,0.49756381]
[1724931617758,0.07643359,60108.0,60107.0,1.59668381]
[1724931619348,0.07643359,60108.0,60107.0,0.99668381]
[1724931619553,0.07643359,60108.0,60107.0,1.59668381]
[1724931620850,0.07643359,60108.0,60107.0,1.36331263]
[1724931621159,0.00024951,60109.0,60107.0,1.44647663]
[1724931621366,0.083136,60127.0,60125.0,0.083138]
[1724931621549,0.083137,60126.0,60125.0,0.083138]
[1724931622556,0.083133,60129.0,60128.0,0.083133]
[1724931623559,0.02412458,60132.0,60131.0,0.08313]
[1724931624459,0.00024951,60132.0,60131.0,0.08313]
[1724931624860,0.00124951,60132.0,60131.0,0.08413]
[1724931625159,0.00124951,60132.0,60131.0,0.08513]
[1724931625559,0.00124951,60132.0,60131.0,0.002]
[1724931626068,0.00124951,60132.0,60131.0,0.50092]
[1724931626857,0.00124951,60132.0,60131.0,0.94635]
[1724931627053,0.00124951,60132.0,60131.0,1.54635]
[1724931627253,0.00124951,60132.0,60131.0,1.62948]
[1724931628368,0.00124951,60132.0,60131.0,1.54635]
[1724931628963,0.00124951,60132.0,60131.0,1.35795]
[1724931629163,0.00424951,60132.0,60131.0,1.18405]
[1724931632276,0.00424951,60132.0,60131.0,1.26718]
[1724931633766,0.1836,60150.0,60145.0,0.083111]
[1724931633967,0.1804,60158.0,60157.0,0.083095]
[1724931634475,0.1804,60158.0,60154.0,0.3608]
[1724931634675,0.083096,60157.0,60154.0,0.443898]
[1724931634985,0.1804,60158.0,60154.0,0.3608]
[1724931635270,0.1804,60158.0,60150.0,0.00024951]
[1724931635271,0.166206,60151.0,60150.0,0.00024951]
[1724931635465,0.09157842,60151.0,60150.0,0.00024951]
[1724931636072,0.16401201,60151.0,60150.0,0.00024951]
[1724931636377,0.15553659,60151.0,60150.0,0.00024951]
[1724931636980,0.083103,60151.0,60150.0,0.00024951]
[1724931637367,0.07243359,60152.0,60150.0,0.00024951]
[1724931637574,0.443898,60155.0,60150.0,0.00024951]
[1724931637575,0.07243359,60154.0,60150.0,0.00024951]
[1724931637877,0.07243359,60153.0,60150.0,0.00124951]
[1724931638082,0.15553459,60153.0,60150.0,0.00124951]
[1724931638282,0.083101,60153.0,60150.0,0.00124951]
[1724931638577,0.083101,60153.0,60150.0,0.00224951]
[1724931640887,0.083103,60151.0,60150.0,0.00224951]
[1724931641272,0.166206,60151.0,60150.0,0.00224951]
[1724931641881,0.166206,60151.0,60150.0,0.00124951]
[1724931642280,0.166206,60151.0,60150.0,0.00224951]
[1724931644276,0.3608,60153.0,60138.0,0.08312]
[1724931644484,0.3608,60143.0,60138.0,0.08312]
[1724931644685,0.5537,60142.0,60138.0,0.08312]
[1724931645483,0.5537,60142.0,60139.0,0.083118]
[1724931646888,0.5537,60142.0,60140.0,0.083117]
[1724931647189,0.5537,60142.0,60141.0,0.083117]
[1724931647787,0.5547,60142.0,60141.0,0.083117]
[1724931647989,0.5567,60142.0,60141.0,0.083117]
[1724931648488,0.5557,60142.0,60141.0,0.083117]
[1724931648787,0.5567,60142.0,60141.0,0.085117]
[1724931648987,0.5805744,60142.0,60141.0,0.085117]
[1724931649485,0.5805744,60142.0,60141.0,0.002]
[1724931649684,0.6636894,60142.0,60141.0,0.002]
[1724931651480,0.5805744,60142.0,60141.0,0.002]
[1724931651791,0.5805744,60142.0,60141.0,0.085117]
[1724931653793,0.2172744,60142.0,60141.0,0.085117]
[1724931654480,0.2172744,60142.0,60141.0,0.002]
[1724931654680,0.3003894,60142.0,60141.0,0.002]
[1724931656178,0.2172744,60142.0,60141.0,0.085117]
[1724931656486,0.0268744,60142.0,60141.0,0.085117]
[1724931660686,0.0268744,60142.0,60141.0,0.002]
[1724931660896,0.083121,60138.0,60134.0,0.00024951]
[1724931661091,0.3608,60135.0,60134.0,0.08337551]
[1724931662395,0.3618,60135.0,60134.0,0.08437551]
[1724931662698,0.583005,60135.0,60121.0,0.0039]
[1724931662994,0.443944,60122.0,60115.0,0.083152]
[1724931663184,0.36912327,60122.0,60111.0,0.3608]
[1724931663594,0.36912327,60122.0,60116.0,0.083151]
[1724931663793,0.36912327,60122.0,60113.0,0.00024951]
[1724931664390,0.36912327,60122.0,60121.0,0.001]
[1724931665497,0.45226627,60122.0,60121.0,0.001]
[1724931665690,0.45626627,60122.0,60121.0,0.001]
[1724931666794,0.09546627,60122.0,60121.0,0.001]
[1724931667492,0.45726627,60122.0,60121.0,0.002]
[1724931668594,0.45726627,60122.0,60113.0,0.00024951]
[1724931668803,0.083154,60115.0,60113.0,0.00024951]
[1724931668991,0.083154,60114.0,60113.0,0.00024951]
[1724931670096,0.39803325,60122.0,60113.0,0.00024951]
[1724931670297,0.39803325,60122.0,60116.0,0.3608]
[1724931670503,0.083154,60114.0,60113.0,0.00024951]
[1724931671196,0.083149,60118.0,60113.0,0.00024951]
[1724931671394,0.083149,60118.0,60116.0,0.3608]
[1724931671805,0.083149,60118.0,60113.0,0.00024951]
[1724931672000,0.40103325,60122.0,60115.0,0.3608]
[1724931672302,0.03190998,60122.0,60121.0,0.083144]
[1724931672601,0.005,60122.0,60121.0,0.083144]
[1724931672907,0.005,60122.0,60121.0,0.258344]
[1724931673199,0.083127,60134.0,60124.0,0.08314]
[1724931673402,0.083128,60133.0,60124.0,0.73394]
[1724931673605,0.9108,60140.0,60124.0,1.2329]
[1724931673606,0.083129,60132.0,60124.0,1.2329]
[1724931673807,0.023854,60125.0,60124.0,1.2329]
[1724931674107,0.00024951,60125.0,60124.0,1.2329]
[1724931674900,0.01124951,60125.0,60124.0,1.2339]
[1724931675298,0.01124951,60125.0,60124.0,0.73494]
[1724931675503,0.02424951,60125.0,60124.0,0.73594]
[1724931679795,0.083109,60147.0,60124.0,1.8349]
[1724931680002,0.083111,60145.0,60144.0,0.3608]
[1724931680608,0.083111,60145.0,60144.0,0.443913]
[1724931680804,0.1888,60150.0,60144.0,0.3608]
[1724931681108,0.00024951,60151.0,60150.0,0.083104]
[1724931681808,0.00024951,60151.0,60149.0,0.3608]
[1724931682402,0.00124951,60151.0,60150.0,0.001]
[1724931682908,0.00024951,60151.0,60149.0,0.3608]
[1724931683115,0.00124951,60151.0,60149.0,0.3618]
[1724931684906,0.00124951,60151.0,60150.0,0.001]
[1724931685307,0.00024951,60151.0,60150.0,0.002]
[1724931685505,0.00024951,60151.0,60150.0,0.001]
[1724931686110,0.00024951,60151.0,60149.0,0.444905]
[1724931686111,0.00847826,60151.0,60149.0,0.445905]
[1724931686515,0.00847826,60151.0,60149.0,0.444905]
[1724931686812,0.00847826,60151.0,60150.0,0.001]
[1724931687216,0.00847826,60151.0,60149.0,0.445905]
[1724931687405,0.00847826,60151.0,60150.0,0.001]
[1724931688105,0.08530876,60151.0,60150.0,0.001]
[1724931688707,0.07708001,60151.0,60150.0,0.001]
[1724931689407,0.07708001,60151.0,60150.0,0.002]
[1724931690411,0.16018301,60151.0,60150.0,0.002]
[1724931691612,0.52098301,60151.0,60150.0,0.002]
[1724931691808,0.52098658,60151.0,60150.0,0.002]
[1724931692016,0.44415251,60151.0,60150.0,0.002]
[1724931692409,0.94291251,60151.0,60150.0,0.002]
[1724931692608,0.083116,60142.0,60139.0,0.3608]
[1724931693014,0.3593,60141.0,60139.0,0.3608]
[1724931693709,0.442417,60141.0,60139.0,0.3608]
[1724931694910,0.083118,60140.0,60139.0,0.3608]
[1724931695516,0.083119,60139.0,60138.0,0.00024951]
[1724931695716,0.373119,60139.0,60127.0,0.083135]
[1724931695918,0.1739,60138.0,60129.0,0.3608]
[1724931698220,0.1739,60138.0,60129.0,0.3618]
[1724931698221,0.083127,60134.0,60129.0,0.3618]
[1724931698412,0.083123,60137.0,60131.0,0.08313]
[1724931698719,0.1749,60138.0,60131.0,0.08313]
[1724931699214,0.1739,60138.0,60131.0,0.08313]
[1724931699422,0.1749,60138.0,60131.0,0.08313]
[1724931699922,0.1749,60138.0,60131.0,0.08413]
[1724931700109,0.001,60138.0,60137.0,0.527044]
[1724931700516,0.00024951,60140.0,60139.0,0.166238]
[1724931700720,0.00024951,60140.0,60139.0,0.766238]
[1724931701016,0.00024951,60140.0,60139.0,1.265078]
[1724931701415,0.3727,60154.0,60152.0,0.083101]
[1724931701720,0.3727,60154.0,60153.0,0.0831]
[1724931701919,0.21062598,60154.0,60153.0,0.0831]
[1724931703117,0.21062598,60154.0,60153.0,0.0841]
[1724931704409,0.21062598,60154.0,60153.0,0.0851]
[1724931705424,0.02382598,60154.0,60153.0,0.0851]
[1724931705625,0.00024951,60160.0,60159.0,0.083092]
[1724931706626,0.0246368,60160.0,60159.0,0.083092]
[1724931706930,0.00024951,60160.0,60159.0,0.084092]
[1724931707226,0.00024951,60160.0,60159.0,0.085092]
[1724931709728,0.02376228,60166.0,60165.0,0.083084]
[1724931709930,0.083071,60174.0,60170.0,0.083076]
[1724931710232,0.3614,60176.0,60169.0,0.3608]
[1724931710525,0.38575165,60176.0,60169.0,0.3608]
[1724931710725,0.38575165,60176.0,60173.0,0.083071]
[1724931711135,0.02435165,60176.0,60173.0,0.083071]
[1724931711428,0.26021429,60179.0,60173.0,0.083071]
[1724931711625,0.083066,60178.0,60173.0,0.083071]
[1724931712225,0.083068,60177.0,60170.0,0.001]
[1724931712419,0.373068,60177.0,60170.0,0.001]
[1724931712826,0.373068,60177.0,60169.0,0.3608]
[1724931713027,0.20168366,60179.0,60173.0,0.001]
[1724931713232,0.083067,60177.0,60173.0,0.001]
[1724931713429,0.083067,60177.0,60171.0,0.083075]
[1724931713430,0.083071,60175.0,60171.0,0.083075]
[1724931714131,0.083067,60177.0,60173.0,0.001]
[1724931714423,0.083069,60176.0,60173.0,0.001]
[1724931715026,0.083071,60175.0,60173.0,0.001]
[1724931715231,0.083071,60174.0,60173.0,0.001]
[1724931715730,0.083071,60174.0,60169.0,0.3618]
[1724931716033,0.083071,60174.0,60171.0,0.084075]
[1724931716328,0.20168366,60179.0,60176.0,0.083068]
[1724931716634,0.02478366,60179.0,60178.0,0.443866]
[1724931716827,0.10158003,60179.0,60178.0,0.3608]
[1724931717135,0.18464403,60179.0,60178.0,0.3608]
[1724931717337,0.083069,60176.0,60171.0,0.3608]
[1724931717520,0.02478366,60179.0,60171.0,0.3608]
[1724931718222,0.10784766,60179.0,60178.0,0.001]
[1724931719435,0.19091166,60179.0,60178.0,0.001]
[1724931719934,0.19091166,60179.0,60178.0,0.002]
[1724931720229,0.19091166,60179.0,60178.0,0.001]
[1724931721131,0.19091166,60179.0,60178.0,0.002]
[1724931721529,0.02478366,60179.0,60178.0,0.002]
[1724931721732,0.00024929,60179.0,60178.0,1.266652]
[1724931722029,0.3608,60192.0,60186.0,0.083054]
[1724931722230,0.36931328,60192.0,60187.0,0.083053]
[1724931722625,0.00851328,60192.0,60188.0,0.083051]
[1724931722832,0.10693084,60193.0,60188.0,0.083051]
[1724931723221,0.10693084,60193.0,60186.0,0.29]
[1724931723222,0.02388484,60193.0,60192.0,0.083046]
[1724931723421,0.00815073,60195.0,60194.0,0.083043]
[1724931723728,0.00024929,60196.0,60194.0,0.083043]
[1724931723729,0.02409328,60196.0,60194.0,0.083043]
[1724931724036,0.00024929,60196.0,60195.0,0.3608]
[1724931724332,0.00024929,60196.0,60195.0,0.443842]
[1724931726020,0.00024929,60196.0,60195.0,0.444842]
[1724931726225,0.07702231,60196.0,60195.0,0.444842]
[1724931726433,0.00024929,60196.0,60195.0,0.444842]
[1724931726729,0.08329029,60196.0,60195.0,0.002]
[1724931727125,0.16006331,60196.0,60195.0,0.002]
[1724931727338,0.08329029,60196.0,60195.0,0.002]
[1724931728223,0.16006331,60196.0,60195.0,0.002]
[1724931728421,0.08329029,60196.0,60195.0,0.002]
[1724931729133,0.16006331,60196.0,60195.0,0.002]
[1724931729721,0.07702231,60196.0,60195.0,0.002]
[1724931732245,0.07702231,60196.0,60195.0,0.445842]
[1724931733136,0.00024929,60196.0,60195.0,0.445842]
[1724931734331,0.00024929,60196.0,60195.0,0.002]
[1724931734536,0.00024929,60196.0,60195.0,0.001]
[1724931734744,0.08329029,60196.0,60195.0,0.001]
[1724931735037,0.00024929,60196.0,60195.0,0.001]
[1724931735834,0.08329029,60196.0,60195.0,0.001]
[1724931736040,0.08329029,60196.0,60195.0,0.3618]
[1724931736744,0.08329029,60196.0,60195.0,0.3628]
[1724931739548,0.08329029,60196.0,60195.0,0.002]
[1724931744553,0.083053,60188.0,60184.0,0.44410629]
[1724931745457,0.083054,60187.0,60184.0,0.00024929]
[1724931746546,0.083055,60186.0,60184.0,0.00124929]
[1724931747049,0.083055,60186.0,60184.0,0.00024929]
[1724931747254,0.083055,60186.0,60184.0,0.00224929]
[1724931747753,0.084055,60186.0,60184.0,0.00224929]
[1724931749550,0.084055,60186.0,60184.0,0.00124929]
[1724931749858,0.084055,60186.0,60184.0,0.00224929]
[1724931750149,0.10865298,60186.0,60184.0,0.00224929]
[1724931750356,0.083056,60185.0,60184.0,0.00224929]
[1724931751143,0.166112,60185.0,60184.0,0.00224929]
[1724931751457,0.02559798,60186.0,60172.0,0.6508]
[1724931751963,0.02559798,60186.0,60180.0,0.083061]
[1724931752155,0.10865298,60186.0,60180.0,0.083061]
[1724931752362,0.10865298,60186.0,60179.0,0.3608]
[1724931752557,0.083056,60185.0,60184.0,0.001]
[1724931753361,0.085056,60185.0,60184.0,0.001]
[1724931754154,0.085056,60185.0,60184.0,0.002]
[1724931754352,0.083056,60185.0,60184.0,0.001]
[1724931754552,0.085056,60185.0,60184.0,0.002]
[1724931755464,0.583536,60185.0,60184.0,0.002]
[1724931755662,1.183536,60185.0,60177.0,0.00024929]
[1724931755847,0.085056,60185.0,60177.0,0.00024929]
[1724931756056,0.083066,60178.0,60177.0,0.00024929]
[1724931756363,0.443866,60178.0,60177.0,0.00024929]
[1724931756571,0.942386,60178.0,60177.0,0.00024929]
[1724931756862,0.942386,60178.0,60177.0,0.00224929]
[1724931757367,1.625452,60178.0,60177.0,0.00224929]
[1724931757657,1.627452,60178.0,60177.0,0.00224929]
[1724931759062,1.027452,60178.0,60177.0,0.00224929]
[1724931759649,0.944386,60178.0,60177.0,0.00224929]
[1724931760066,0.944386,60178.0,60177.0,0.00124929]
[1724931760254,0.945386,60178.0,60177.0,0.00224929]
[1724931760449,1.546386,60178.0,60177.0,0.00224929]
[1724931760657,0.083079,60169.0,60165.0,0.183]
[1724931760860,0.00843773,60169.0,60166.0,0.3608]
[1724931761060,0.5528,60177.0,60166.0,0.443882]
[1724931761267,0.083075,60172.0,60166.0,0.443882]
[1724931761559,0.083076,60171.0,60166.0,0.443882]
[1724931761952,0.083077,60170.0,60166.0,0.3608]
[1724931762150,0.09139333,60170.0,60166.0,0.3608]
[1724931762356,0.09139333,60170.0,60166.0,0.443881]
[1724931762758,0.001,60169.0,60166.0,0.443881]
[1724931763158,0.005,60169.0,60166.0,0.443881]
[1724931763462,0.004,60169.0,60166.0,0.3608]
[1724931763855,0.004,60169.0,60168.0,0.083079]
[1724931764368,0.001,60169.0,60167.0,0.29]
[1724931764664,0.38488225,60178.0,60172.0,0.083073]
[1724931764854,0.083069,60176.0,60172.0,0.083073]
[1724931765166,0.38488225,60178.0,60172.0,0.083073]
[1724931765167,0.08307,60175.0,60172.0,0.083073]
[1724931765868,0.08307,60175.0,60172.0,0.443873]
[1724931766465,0.38488225,60178.0,60173.0,0.083072]
[1724931766660,0.083068,60177.0,60173.0,0.083072]
[1724931766966,0.38488225,60178.0,60173.0,0.083072]
[1724931767971,0.083068,60176.0,60173.0,0.084072]
[1724931769068,0.083068,60176.0,60173.0,0.085072]
[1724931769566,0.083068,60176.0,60173.0,0.084072]
[1724931769768,0.083068,60176.0,60173.0,0.085072]
[1724931770261,0.38488225,60178.0,60173.0,0.002]
[1724931770262,0.08307,60175.0,60173.0,0.002]
[1724931770464,0.083071,60174.0,60173.0,0.002]
[1724931772063,0.02408225,60178.0,60173.0,0.292]
[1724931772268,0.3608,60189.0,60177.0,0.3608]
[1724931772464,0.3608,60189.0,60178.0,0.1901]
[1724931772659,0.083056,60186.0,60178.0,0.1901]
[1724931773056,0.083056,60186.0,60182.0,0.08306]
[1724931773666,0.02395135,60184.0,60182.0,0.08306]
[1724931773968,0.00024929,60184.0,60182.0,0.08306]
[1724931774169,0.00024929,60184.0,60178.0,0.1911]
[1724931774372,0.08330729,60184.0,60178.0,0.1911]
[1724931774672,0.08330729,60184.0,60179.0,0.083064]
[1724931775172,0.083062,60181.0,60178.0,0.002]
[1724931775874,0.02472283,60184.0,60183.0,0.083059]
[1724931776074,0.3608,60196.0,60183.0,0.3608]
[1724931776373,0.3608,60196.0,60192.0,0.083045]
[1724931776963,0.02457689,60198.0,60188.0,0.3608]
[1724931777269,0.622627,60206.0,60199.0,0.083036]
[1724931777471,0.622627,60206.0,60200.0,0.083035]
[1724931777664,0.63078682,60206.0,60200.0,0.083035]
[1724931777863,0.57229825,60206.0,60201.0,0.083033]
[1724931779170,0.0768001,60205.0,60203.0,0.08303]
[1724931779373,0.0768001,60204.0,60203.0,0.08303]
[1724931779573,0.39349825,60206.0,60204.0,0.08303]
[1724931780268,0.0768001,60205.0,60201.0,0.001]
[1724931780473,0.39349825,60206.0,60203.0,0.001]
[1724931780474,0.0768001,60204.0,60203.0,0.001]
[1724931780671,0.1598301,60204.0,60203.0,0.001]
[1724931781173,0.083032,60202.0,60201.0,0.001]
[1724931781375,0.083038,60198.0,60190.0,0.3608]
[1724931781574,0.0768001,60197.0,60190.0,0.3608]
[1724931781767,0.0768001,60196.0,60192.0,0.083046]
[1724931781972,0.0768001,60195.0,60192.0,0.083046]
[1724931782175,0.0768001,60194.0,60192.0,0.083046]
[1724931782474,0.0768001,60193.0,60192.0,0.083046]
[1724931783176,0.0768001,60193.0,60190.0,0.3608]
[1724931783177,0.0768001,60193.0,60190.0,0.24651048]
[1724931783367,0.0768001,60192.0,60190.0,0.24651048]
[1724931783568,0.0768001,60191.0,60190.0,0.24651048]
[1724931784378,0.0768001,60191.0,60187.0,0.32894929]
[1724931784570,0.1598491,60190.0,60187.0,0.32894929]
[1724931784765,0.0768001,60189.0,60187.0,0.32894929]
[1724931784970,0.0768001,60188.0,60187.0,0.32894929]
[1724931785577,0.0768001,60188.0,60187.0,0.32994929]
[1724931786175,0.083051,60189.0,60187.0,0.32894929]
[1724931786375,0.001,60188.0,60187.0,0.33094929]
[1724931786776,0.001,60188.0,60187.0,0.00224929]
[1724931788280,0.083052,60188.0,60187.0,0.00124929]
[1724931788479,0.083052,60188.0,60187.0,0.00224929]
[1724931789080,0.083052,60188.0,60187.0,0.00124929]
[1724931789282,0.085052,60188.0,60187.0,0.00224929]
[1724931790699,0.002,60188.0,60187.0,0.00224929]
[1724931793100,0.168104,60188.0,60187.0,0.00224929]
[1724931793298,0.083062,60181.0,60176.0,0.3267]
[1724931793492,0.3608,60183.0,60181.0,0.083061]
[1724931793897,0.454753,60188.0,60182.0,0.3608]
[1724931794196,0.454753,60188.0,60182.0,0.443859]
[1724931794399,0.083054,60187.0,60183.0,0.083058]
[1724931794597,0.083056,60185.0,60182.0,0.3608]
[1724931795601,0.083059,60183.0,60179.0,0.00024929]
[1724931795802,0.083059,60183.0,60182.0,0.001]
[1724931796399,0.443859,60183.0,60182.0,0.001]
[1724931796613,0.08306,60182.0,60181.0,0.001]
[1724931796910,0.083063,60180.0,60179.0,0.00124929]
[1724931797107,0.083063,60180.0,60179.0,0.00224929]
[1724931797301,0.3658,60183.0,60179.0,0.08531229]
[1724931797502,0.44886,60183.0,60179.0,0.08531229]
[1724931797814,0.44886,60183.0,60182.0,0.001]
[1724931798413,0.002,60180.0,60179.0,0.08431229]
[1724931799708,0.004,60180.0,60179.0,0.08531229]
[1724931800105,0.002,60180.0,60179.0,0.08431229]
[1724931800608,0.003,60180.0,60179.0,0.08531229]
[1724931803112,0.02650625,60180.0,60179.0,0.08531229]
[1724931810311,0.02650625,60180.0,60179.0,0.00224929]
[1724931812711,0.10956925,60180.0,60179.0,0.00224929]
[1724931819220,0.02650625,60180.0,60179.0,0.08531329]
[1724931823622,0.003,60180.0,60179.0,0.08531329]
[1724931823822,0.00024929,60191.0,60190.0,0.083049]
[1724931824026,0.00024929,60191.0,60190.0,0.887698]
[1724931824220,0.00024929,60191.0,60190.0,1.903049]
[1724931824817,0.00024929,60191.0,60190.0,2.042449]
[1724931825026,0.00224929,60191.0,60190.0,2.043449]
[1724931825434,0.00324929,60191.0,60190.0,2.044449]
[1724931826623,0.00224929,60191.0,60190.0,2.044449]
[1724931826823,0.00224929,60191.0,60190.0,1.905049]
[1724931827023,0.00224929,60191.0,60190.0,2.238549]
[1724931827421,0.00224929,60191.0,60190.0,1.638549]
[1724931827733,0.00124929,60191.0,60190.0,1.638549]
[1724931828031,0.08429729,60191.0,60190.0,0.002]
[1724931828523,0.49670942,60200.0,60190.0,0.002]
[1724931828726,0.20670942,60200.0,60194.0,0.3608]
[1724931828927,0.083042,60195.0,60194.0,0.3608]
[1724931830730,0.083042,60195.0,60194.0,0.3618]
[1724931831132,0.084042,60195.0,60194.0,0.3628]
[1724931831437,0.001,60195.0,60194.0,0.3628]
[1724931832231,0.07778512,60195.0,60194.0,0.32652001]
[1724931833437,0.16082712,60195.0,60194.0,0.002]
[1724931835130,0.07778512,60195.0,60194.0,0.002]
[1724931836127,0.07778512,60195.0,60194.0,0.00180001]
[1724931836831,0.07778512,60195.0,60194.0,0.08484301]
[1724931837742,0.001,60195.0,60194.0,0.08484301]
[1724931843233,0.001,60195.0,60194.0,0.26544301]
[1724931845837,0.001,60195.0,60194.0,0.08484301]
[1724931848644,0.001,60195.0,60194.0,0.87324301]
[1724931848645,0.07778512,60195.0,60194.0,0.87324301]
[1724931848834,0.001,60195.0,60194.0,0.87324301]
[1724931849038,0.001,60195.0,60194.0,0.95628601]
[1724931849039,0.07778512,60195.0,60194.0,0.95628601]
[1724931849243,0.001,60195.0,60194.0,0.95628601]
[1724931849546,0.001,60195.0,60194.0,0.08484301]
[1724931849736,0.07778512,60195.0,60194.0,0.08484301]
[1724931849936,0.001,60195.0,60194.0,0.08484301]
[1724931850138,0.07778512,60195.0,60194.0,0.08484301]
[1724931850745,0.07778512,60195.0,60194.0,0.58324301]
[1724931850943,0.001,60195.0,60194.0,0.66628601]
[1724931851249,0.001,60195.0,60194.0,0.74932901]
[1724931851940,0.001,60195.0,60194.0,0.66628601]
[1724931852136,0.001,60195.0,60194.0,0.85092901]
[1724931852341,0.001,60195.0,60194.0,1.34932901]
[1724931852847,1e-06,60195.0,60194.0,1.34932901]
[1724931854443,1e-06,60195.0,60194.0,1.349529]
[1724931854849,0.00024929,60201.0,60200.0,0.16607]
[1724931855146,0.00024929,60201.0,60200.0,0.81687]
[1724931855336,0.00024929,60201.0,60200.0,1.31519]
[1724931856139,0.00024929,60201.0,60200.0,1.31619]
[1724931856647,0.00024929,60201.0,60200.0,1.31719]
[1724931856844,0.00024929,60201.0,60200.0,0.81887]
[1724931857249,0.00024929,60201.0,60200.0,1.31719]
[1724931858149,0.00024929,60201.0,60200.0,0.81887]
[1724931860447,0.00024929,60201.0,60200.0,0.735835]
[1724931861553,0.00024929,60201.0,60200.0,0.445835]
[1724931861761,0.08328329,60201.0,60200.0,0.3628]
[1724931862353,0.00024929,60201.0,60200.0,0.445835]
[1724931863354,0.00024929,60201.0,60200.0,0.735835]
[1724931863941,0.00024929,60201.0,60200.0,0.734835]
[1724931864249,0.00024929,60201.0,60200.0,0.735835]
[1724931865653,0.00024929,60201.0,60200.0,0.81887]
[1724931866553,0.00024929,60201.0,60200.0,0.52887]
[1724931866952,0.00024929,60201.0,60200.0,0.445835]
[1724931867353,2.9e-07,60201.0,60200.0,2.08326]
[1724931868449,2.9e-07,60201.0,60200.0,2.08226]
[1724931868644,5e-08,60201.0,60200.0,2.10695332]
[1724931868844,0.3669,60216.0,60214.0,0.083015]
[1724931869148,0.3669,60216.0,60215.0,0.443815]
[1724931869348,0.39910988,60216.0,60215.0,0.443815]
[1724931870446,0.39910988,60216.0,60215.0,0.444815]
[1724931871045,0.1842,60216.0,60215.0,0.52883]
[1724931871251,0.1842,60216.0,60215.0,0.445815]
[1724931871252,0.06814839,60216.0,60215.0,0.445815]
[1724931871959,0.06814839,60216.0,60215.0,0.52883]
[1724931873856,0.06814839,60216.0,60215.0,1.02703]
[1724931874254,0.06814839,60216.0,60215.0,1.16443]
[1724931874656,0.06814839,60216.0,60215.0,1.02703]
[1724931875054,0.06814839,60216.0,60215.0,1.16443]
[1724931875255,0.06814839,60216.0,60215.0,0.66623]
[1724931876551,0.00024929,60222.0,60221.0,0.083006]
[1724931876764,0.00024929,60222.0,60221.0,0.443806]
[1724931877058,0.00024929,60222.0,60221.0,0.3608]
[1724931877059,0.16625929,60222.0,60221.0,0.3608]
[1724931877357,0.2428413,60222.0,60221.0,0.3608]
[1724931877559,0.083013,60216.0,60215.0,0.3628]
[1724931877758,0.166026,60216.0,60215.0,0.002]
[1724931877965,0.083021,60210.0,60209.0,0.00024929]
[1724931878155,0.683021,60210.0,60209.0,0.00024929]
[1724931878351,0.49828,60210.0,60209.0,0.00024929]
[1724931878963,0.06814839,60212.0,60209.0,0.08327129]
[1724931879151,0.1941,60214.0,60209.0,0.00024929]
[1724931879152,0.06814839,60213.0,60209.0,0.00024929]
[1724931879353,0.06814839,60212.0,60209.0,0.00024929]
[1724931879551,0.06814839,60213.0,60209.0,0.00024929]
[1724931879758,0.06814839,60212.0,60209.0,0.00024929]
[1724931880059,0.28665997,60214.0,60211.0,0.3608]
[1724931880256,0.06814839,60213.0,60211.0,0.3608]
[1724931880853,0.06814839,60212.0,60211.0,0.3608]
[1724931881662,0.06914839,60212.0,60211.0,0.3608]
[1724931881858,0.06914839,60212.0,60211.0,0.44382]
[1724931882364,0.001,60212.0,60211.0,0.44382]
[1724931882862,0.001,60212.0,60211.0,0.44482]
[1724931883457,0.182,60213.0,60212.0,0.083019]
[1724931883657,0.25014839,60213.0,60212.0,0.083019]
[1724931885166,0.25014839,60213.0,60212.0,0.084019]
[1724931886363,0.25014839,60213.0,60212.0,0.085019]
[1724931889966,0.25014839,60213.0,60212.0,0.084019]
[1724931890168,0.25014839,60213.0,60212.0,0.167038]
[1724931890472,0.25014839,60213.0,60212.0,0.168038]
[1724931891560,0.182,60213.0,60212.0,0.168038]
[1724931894758,0.182,60213.0,60212.0,0.528838]
[1724931896372,0.182,60213.0,60212.0,0.611857]
[1724931897563,0.3608,60224.0,60221.0,0.083006]
[1724931897767,0.03304741,60222.0,60221.0,0.166012]
[1724931897967,0.00024929,60222.0,60221.0,0.166012]
[1724931898471,0.00848213,60222.0,60221.0,0.166012]
[1724931898772,0.06839768,60222.0,60221.0,0.166012]
[1724931899369,0.07662886,60222.0,60221.0,0.167012]
[1724931900180,0.07662886,60222.0,60221.0,0.168012]
[1724931900376,0.07662886,60222.0,60221.0,0.085006]
[1724931900568,1.25779386,60222.0,60221.0,0.085006]
[1724931900774,1.25779386,60222.0,60221.0,0.002]
[1724931902576,0.06839768,60222.0,60221.0,0.085006]
[1724931902779,0.05351752,60222.0,60221.0,0.083006]
[1724931903074,0.1895,60231.0,60228.0,0.082997]
[1724931903381,0.1831,60233.0,60228.0,0.526794]
[1724931903681,0.00815739,60229.0,60228.0,0.526794]
[1724931903978,1e-06,60229.0,60228.0,0.526794]
[1724931904179,1e-06,60229.0,60228.0,0.527794]
[1724931904481,0.07672878,60229.0,60228.0,0.528794]
[1724931904867,0.14486922,60229.0,60228.0,0.528794]
[1724931906582,1e-06,60229.0,60228.0,0.528794]
[1724931909379,1e-06,60229.0,60228.0,0.611791]
[1724931909979,0.267182,60239.0,60228.0,0.611791]
[1724931909980,0.00825981,60239.0,60238.0,0.082983]